Cogmind - Beta 16 @@@ ROGUE MODE // 2026.02.05 @ 00:51:43 Player: Megaknight51 Result: Destroyed by D-53 Grenadier with Mini Grenade Launcher Performance ------------- Evolutions (1) 500 Regions Visited (4) 800 Robots Destroyed (67) 335 Value Destroyed (1427) 1427 Prototype IDs (0) 0 Alien Tech Used (0) 0 Bonus (0) 0 TOTAL SCORE: 3062 Bonus ------- None Cogmind --------- Core Integrity 0/400 Matter 84/300 Energy 100/100 System Corruption 0% Temperature Cool (0) Movement Walking (330) Ox3 Location -9/Mines Parts ------- > --- POWER (1) -------- (None) > --- PROPULSION (4) --- Carbon-fiber Leg > --- UTILITY (2) ------ High-capacity Storage Unit > --- WEAPON (2) ------- Autogun Autogun > --- INVENTORY (20) --- Nuclear Core Nuclear Core Nuclear Core Nuclear Core Large Matter Pod (150) Large Matter Pod (150) Sensor Array Improved Signal Interpreter Improved Terrain Scanner Improved Terrain Scan Processor Light Armor Plating Hardened Light Armor Plating Rocket Launcher Mini Grenade Launcher Peak State ------------ > --- POWER ------------ Light Nuclear Core > --- PROPULSION ------- Light Treads Light Treads Light Treads Improved Treads > --- UTILITY ---------- High-capacity Storage Unit Advanced Visual Processing Unit > --- WEAPON ----------- Shotgun Shotgun > --- INVENTORY -------- Nuclear Core Nuclear Core Nuclear Core Nuclear Core Light Treads Light Treads Large Matter Pod Large Matter Pod Sensor Array Improved Terrain Scanner Light Armor Plating Hardened Light Armor Plating Hardened Light Armor Plating Hacking Suite Autogun Autogun Shotgun Shotgun Rocket Launcher Mini Grenade Launcher [Rating: 20] Favorites ----------- Power Light Ion Engine Engine Light Ion Engine Power Core Light Nuclear Core Propulsion Light Treads Treads Light Treads Leg Aluminum Leg Utility High-capacity Storage Unit Device Seismic Detector Storage High-capacity Storage Unit Processor Transport Network Coupler Protection Hardened Light Armor Plating Weapon Shotgun Ballistic Gun Shotgun Ballistic Cannon Light Cannon Launcher Rocket Launcher Build | -11 -10 -10 -9 -9 ------- Run | Yrd Mat Min Mat Min Slots Evolved 2 | . . . 2 . Power . | . . . . . Propulsion 2 | . . . 2 . Utility . | . . . . . Weapon . | . . . . . Parts Attached 48 | 7 8 6 22 5 Power 8 | 1 3 2 2 . Engine 7 | 1 3 2 1 . Core 1 | . . . 1 . Reactor . | . . . . . Propulsion 18 | 2 . 2 12 2 Treads 13 | 2 . . 10 1 Leg 5 | . . 2 2 1 Wheel . | . . . . . Hover . | . . . . . Flight . | . . . . . Utility 8 | 2 4 . 1 1 Device 1 | 1 . . . . Storage 4 | 1 3 . . . Processor 2 | . 1 . 1 . Hackware . | . . . . . Protection 1 | . . . . 1 Artifact . | . . . . . Weapon 14 | 2 1 2 7 2 Energy Gun . | . . . . . Energy Cannon . | . . . . . Ballistic Gun 11 | 2 . 2 5 2 Ballistic Cannon 1 | . 1 . . . Launcher 2 | . . . 2 . Special Weapon . | . . . . . Impact Weapon . | . . . . . Slashing Weapon . | . . . . . Piercing Weapon . | . . . . . Special Melee Weapon . | . . . . . Unidentified Prototypes . | . . . . . Parts Lost 20 | . 4 5 . 11 Power 5 | . 2 2 . 1 Propulsion 8 | . 1 1 . 6 Utility 1 | . . . . 1 Weapon 6 | . 1 2 . 3 Highest Loss Streak 11 | . 2 3 . 11 To Critical Strikes 1 | . . . . 1 Average Backups 16 | 1 8 19 19 19 Power 3 | . 2 2 3 4 Propulsion . | . . . 1 1 Utility 5 | . 3 5 7 8 Weapon 6 | . 2 11 6 4 Tool/Special . | . . . . . Unused Backups 23 | . 2 1 8 12 Power 7 | . 1 . 2 4 Propulsion . | . . . . . Utility 12 | . 1 . 3 8 Weapon 4 | . . 1 3 . Tool/Special . | . . . . . Average Slot Usage (%) 94 | . 95 86 99 90 Engine 8 | . 13 13 1 8 Core 3 | . . . 9 . Treads 26 | . 24 9 36 37 Leg 4 | . . 7 7 . Storage 12 | . 14 14 11 11 Processor 11 | . 11 14 11 8 Ballistic Gun 19 | . 17 18 22 22 Ballistic Cannon 4 | . 10 8 . . Peak Build Rating 20 | 7 9 11 20 20 Average Rating 13 | 5 7 9 19 18 On Entrance 9 | . 7 9 11 20 Avg Prop Armor Cover (%) 5 | . . . 5 . Naked Turns . | . . . . . Heaviest Build 87 | 11 87 49 51 51 Greatest Support 83 | 40 40 20 83 83 Greatest Overweight (x) 16 | . 4 16 1 15 Average Overweight (x) . | . . 2 . . Largest Inventory Capacity 25 | 8 25 20 20 20 Average Capacity 17 | 7 12 20 20 20 Most Carried 20 | 2 20 20 20 20 Average Carried 16 | 1 8 19 19 19 Final Capacity 20 | 8 20 20 20 20 Final Carried 20 | 2 20 20 20 14 Class Distribution -------------------- 70% | Mutant 29% | Scavenger-Mutant Dominant Class ---------------- Mutant | -10/Materials Mutant | -10/Mines Scavenger-Mutant | -9/Materials Mutant | -9/Mines Resources | -11 -10 -10 -9 -9 ----------- Run | Yrd Mat Min Mat Min Matter Collected 2000 | 174 333 390 952 151 Remotely . | . . . . . Salvage Created 2112 | 36 371 357 1083 265 Parts 136 | 7 27 20 74 8 Haulers Intercepted 3 | . 2 . 1 . Recyclers Shooed 4 | . 1 1 2 . Parts Field Recycled . | . . . . . Retrieved Matter . | . . . . . Parts Self-Destructed . | . . . . . Prevented . | . . . . . Parts Restored . | . . . . . Kills | -11 -10 -10 -9 -9 ------- Run | Yrd Mat Min Mat Min Combat Hostiles Destroyed 62 | . 13 4 30 15 Guns 51 | . 3 3 30 15 Cannons 11 | . 10 1 . . Classes Destroyed 10 | 1 5 1 2 1 Worker 2 | . . . 2 . Builder 1 | . 1 . . . Tunneler 3 | 2 . . 1 . Hauler 3 | . 2 . 1 . Recycler 6 | . . 3 2 1 Operator 1 | . 1 . . . Swarmer 23 | . 6 . 13 4 Grunt 21 | . 7 4 10 . Sentry 7 | . . . 7 . Assembled 11 | . . . . 11 Best Kill Streak 11 | 1 3 3 5 11 Combat Bots Only 11 | . 3 2 4 11 Max Kills in Single Turn 2 | 1 1 1 2 2 Gunslinging 1 | . . . 1 . Exploded . | . . . . . Melee . | . . . . . Uniques/NPCs Destroyed . | . . . . . Combat | -11 -10 -10 -9 -9 -------- Run | Yrd Mat Min Mat Min Hostile Shots Fired 405 | . 77 51 123 154 Missed 101 | . 18 7 36 40 Hits 304 | . 59 44 87 114 Melee 6 | . . . . 6 Projectile 298 | . 59 44 87 108 AOE 2 | . . . . 2 Critical Strikes 7 | . 1 3 2 1 Damage Taken 3681 | . 560 582 932 1607 Core 617 | . 46 157 130 284 Absorbed by Shields . | . . . . . Core Remaining (%) 59 | 100 . 18 . . Volleys Fired 197 | 6 57 28 72 34 Largest 2 | 2 2 2 2 2 Hottest 63 | 40 50 50 63 46 Shots Fired 388 | 12 113 51 144 68 Gun 324 | 12 56 46 142 68 Cannon 62 | . 57 5 . . Launcher 2 | . . . 2 . Special . | . . . . . Kinetic 386 | 12 113 51 142 68 Thermal . | . . . . . Explosive 2 | . . . 2 . Electromagnetic . | . . . . . Robot Hit Streak 16 | 4 8 7 16 6 Robot Miss Streak 8 | 2 5 3 8 6 Penetration Max . | . . . . . Secondary Targets 5 | . . . 2 3 Max Gunslinging Chain 1 | . . . 1 1 Shots Hit Robots 250 | 7 67 32 98 46 Core Hits 139 | 4 30 15 60 30 Critical Kills 1 | . . 1 . . Critical Parts Destroyed . | . . . . . Critical Strikes 2 | . 1 1 . . Destroy 1 | . . 1 . . Blast 1 | . 1 . . . Melee Attacks . | . . . . . Impact . | . . . . . Slashing . | . . . . . Piercing . | . . . . . Sneak Attacks . | . . . . . Combat Hostiles . | . . . . . Follow-up Attacks . | . . . . . Damage Inflicted 3690 | 60 883 423 1545 779 Guns 3009 | 60 299 347 1524 779 Cannons 644 | . 579 65 . . Explosions 15 | . . . 15 . Melee . | . . . . . Ramming 22 | . 5 11 6 . Kinetic 3653 | 60 878 412 1524 779 Thermal . | . . . . . Explosive 15 | . . . 15 . Electromagnetic . | . . . . . Impact . | . . . . . Slashing . | . . . . . Piercing . | . . . . . Highest Corruption . | . . . . . Average Corruption . | . . . . . Corruption Purged . | . . . . . Corruption Blocked . | . . . . . Overload Shots . | . . . . . Overflow Damage . | . . . . . Projectiles . | . . . . . Explosions . | . . . . . Melee . | . . . . . Knockbacks 11 | . 9 2 . . Impact . | . . . . . Kinetic 11 | . 9 2 . . Secondary . | . . . . . Self-Inflicted Damage . | . . . . . Shots . | . . . . . Rammed 2 | . 1 1 . . Targets Rammed 6 | . 1 2 3 . Kicked 4 | . . 1 3 . Crushed . | . . . . . Highest Temperature 58 | . 49 58 10 13 Average Temperature 16 | . 13 24 3 9 Received Heat Transfer 809 | . 177 381 231 20 Siege Activations . | . . . . . Martial Activations . | . . . . . Shielding Activations . | . . . . . Robots Disrupted . | . . . . . Combat Hostiles . | . . . . . Robots Corrupted . | . . . . . Combat Hostiles . | . . . . . Parts Fried . | . . . . . Impact Corruptions . | . . . . . Robots Melted . | . . . . . Combat Hostiles . | . . . . . Parts Melted . | . . . . . Heat Transferred . | . . . . . Parts Sabotaged . | . . . . . Parts Stolen . | . . . . . Parts Stripped . | . . . . . Power Chain Reactions . | . . . . . Alert | -11 -10 -10 -9 -9 ------- Run | Yrd Mat Min Mat Min Maximum Alert Level 1 | . 1 . 1 . Low Security (%) 94 | 100 94 100 89 100 Level 1 5 | . 5 . 10 . Level 2 . | . . . . . Level 3 . | . . . . . Level 4 . | . . . . . Level 5 . | . . . . . High Security . | . . . . . Max Security . | . . . . . Peak Influence 357 | 5 214 59 357 139 Initial 139 | . . 59 . 139 Average 71 | 1 97 9 106 53 Influence Increases 1548 | 10 476 115 847 100 Destroy 0b10 Robot/C 1020 | . 260 80 600 80 Destroy 0b10 Robot/NC 80 | 10 20 15 30 5 Destroy Leader 226 | . 54 20 142 10 Allied During Kill 5 | . . . . 5 Successful Hack 55 | . 35 . 20 . Disable Machine 45 | . 30 . 15 . Destroy Structure 27 | . 2 . 25 . Lose Combat Pursuer 90 | . 75 . 15 . Influence Decreases 1548 | 10 323 268 490 457 Entered New Map 312 | . . 94 . 218 Time Decay 1132 | 10 283 154 490 195 Lost Part 84 | . 40 20 . 24 Lost Ally 20 | . . . . 20 Squads Dispatched 5 | . 2 . 3 . Investigation 2 | . 1 . 1 . Extermination . | . . . . . Reinforcement 3 | . 1 . 2 . Assault . | . . . . . Garrison . | . . . . . Intercept . | . . . . . Searches Triggered . | . . . . . Construction Impeded . | . . . . . Haulers Reinforced . | . . . . . Active Scanning Responses . | . . . . . Cargo Convoy Interrupts . | . . . . . Stealth | -11 -10 -10 -9 -9 --------- Run | Yrd Mat Min Mat Min Distress Signals 8 | . 3 . 5 . Communications Jammed . | . . . . . Distress Signals . | . . . . . Times Spotted 107 | . 29 4 47 27 Peak Tracking Total 18 | . 6 2 5 18 Tactical Retreats 7 | . 3 . 1 3 Traps | -11 -10 -10 -9 -9 ------- Run | Yrd Mat Min Mat Min Traps Triggered . | . . . . . Indirectly . | . . . . . Trap Hack Attempts . | . . . . . Triggered . | . . . . . Disarmed . | . . . . . Reprogrammed . | . . . . . Reused . | . . . . . Traps Extracted . | . . . . . Installed . | . . . . . Triggered . | . . . . . Machines | -11 -10 -10 -9 -9 ---------- Run | Yrd Mat Min Mat Min Machines Disabled 4 | . 3 . 1 . Max in Single Turn 1 | . 1 . 1 . Machines Repaired . | . . . . . Machines Dismantled . | . . . . . Machines Sabotaged . | . . . . . Overloaded Fab Kills . | . . . . . Hacking | -11 -10 -10 -9 -9 --------- Run | Yrd Mat Min Mat Min Machines Accessed 9 | . 4 . 5 . Terminals 8 | . 4 . 4 . Fabricators . | . . . . . Repair Stations . | . . . . . Recycling Units . | . . . . . Scanalyzers 1 | . . . 1 . Garrison Access . | . . . . . Total Hacks 29 | . 14 . 15 . Successful 10 | . 6 . 4 . Failed 18 | . 8 . 10 . Catastrophic 3 | . 2 . 1 . Database Lockouts 1 | . . . 1 . Manual 16 | . 6 . 10 . Terminals 26 | . 14 . 12 . Fabricators . | . . . . . Repair Stations . | . . . . . Recycling Units . | . . . . . Scanalyzers 3 | . . . 3 . Garrison Access . | . . . . . Terminal Hacks 9 | . 6 . 3 . Record 2 | . 2 . . . Robot Analysis 3 | . 2 . 1 . Branch Access Points 1 | . . . 1 . Terminal Index 2 | . 1 . 1 . Hauler Manifests 1 | . 1 . . . Fabricator Hacks . | . . . . . Repair Station Hacks . | . . . . . Recycling Unit Hacks . | . . . . . Scanalyzer 1 | . . . 1 . Retrieve Study 1 | . . . 1 . Garrison Access Hacks . | . . . . . Unauthorized Hacks . | . . . . . Terminals . | . . . . . Fabricators . | . . . . . Repair Stations . | . . . . . Recycling Units . | . . . . . Scanalyzers . | . . . . . Garrison Access . | . . . . . Data Cores Recovered . | . . . . . Used . | . . . . . Hacking Detections 9 | . 4 . 5 . Full Trace Events 2 | . 1 . 1 . Feedback Events . | . . . . . Feedback Blocked . | . . . . . Robot Schematics Acquired . | . . . . . Robots Built . | . . . . . Authchips . | . . . . . Time . | . . . . . Total Robot Build Rating . | . . . . . Part Schematics Acquired . | . . . . . Parts Built . | . . . . . Authchips . | . . . . . Time . | . . . . . Total Part Build Rating . | . . . . . Part Studies Acquired 1 | . . . 1 . Parts Repaired . | . . . . . Time . | . . . . . Parts Recycled . | . . . . . Recycled Matter . | . . . . . Retrieved Matter . | . . . . . Retrieved Components . | . . . . . Parts Scanalyzed . | . . . . . Part Schematics Acquired . | . . . . . Parts Damaged . | . . . . . Bothacking | -11 -10 -10 -9 -9 ------------ Run | Yrd Mat Min Mat Min Used RIF Installer . | . . . . . Robots Hacked . | . . . . . Non-combat . | . . . . . Combat . | . . . . . Robot Hacks Applied . | . . . . . Relay Couplers Released . | . . . . . Fabnet Peak Effective % . | . . . . . Robots Rewired . | . . . . . Allies Hacked . | . . . . . Hacks Repelled . | . . . . . Allies | -11 -10 -10 -9 -9 -------- Run | Yrd Mat Min Mat Min Total Allies 2 | . . . . 2 Largest Group 2 | . . . . 2 Highest-Rated Group 50 | . . . . 50 Highest-Rated Ally 31 | . . . . 31 Total Orders . | . . . . . Ally Attacks 5 | . . . . 5 Total Damage 82 | . . . . 82 Kills 1 | . . . . 1 Allies Corrupted . | . . . . . Allies Melted . | . . . . . Intel | -11 -10 -10 -9 -9 ------- Run | Yrd Mat Min Mat Min Active Infowar (turns) 4455 | 33 1272 1132 1589 429 Optics 2004 | . . . 1575 429 Seismic 288 | 33 255 . . . T.N.C. 2163 | . 1017 1132 14 . Robot Analysis Total 3 | . 2 . 1 . Derelict Logs Recovered 2 | . . 1 . 1 Drone Launches . | . . . . . Drone Recoveries . | . . . . . Exploration | -11 -10 -10 -9 -9 ------------- Run | Yrd Mat Min Mat Min Turns Passed 4649 | 122 1274 1132 1591 530 Spaces Moved 1790 | 70 558 341 712 109 Core 21 | 15 . 3 . 3 Treads 1596 | 55 558 234 645 104 Legs 173 | . . 104 67 2 Wheels . | . . . . . Hover . | . . . . . Flight . | . . . . . Fastest Speed 50 | 50 160 260 160 160 Average Speed 198 | 136 188 306 163 180 Slowest Speed 850 | 160 480 850 240 800 Overloaded Moves . | . . . . . Propulsion Burnouts . | . . . . . Robots Hopped . | . . . . . Potential Cave-ins . | . . . . . Cave-ins Triggered . | . . . . . Exploration Rate (%) 42 | 5 78 55 57 19 Regions Visited 4 Branch Regions 2 Pre-discovered Areas 2 | . . 1 . 1 Known Exits Taken 1 | . . . 1 . Unknown Exits Taken 3 | 1 1 1 . . Scrap Searched 1 | . . . . 1 Spaces Dug . | . . . . . Terrain Destroyed 27 | . . . 27 . Melee . | . . . . . Projectile . | . . . . . AOE 27 | . . . 27 . Terrain Rammed . | . . . . . Walls Destroyed . | . . . . . Machines Disabled . | . . . . . Actions | -11 -10 -10 -9 -9 --------- Run | Yrd Mat Min Mat Min Total 2537 | 84 677 384 1011 381 Wait 407 | . 29 . 150 228 Move 1786 | 69 557 340 711 109 Hop . | . . . . . Pick Up 43 | 2 19 4 18 . Fast Attach 16 | 7 3 3 2 1 Attach 12 | . 1 3 2 6 Detach 3 | . 1 . 1 1 Swap 29 | . 5 . 23 1 Drop 35 | . 4 1 29 1 Fire 197 | 6 57 28 72 34 Melee . | . . . . . Ram . | . . . . . Kick 4 | . . 1 3 . Crush 2 | . 1 1 . . Escape Stasis . | . . . . . Rewire 3 | . . 3 . . Trap . | . . . . . Miscellaneous . | . . . . . Route ------- -11/Scrapyard -10/Materials (discovered 3 exits: *Mat / [*Min] / [*Sub]) -10/Mines -9/Materials (discovered 3 exits: *Mat x2 / *Min) -9/Mines History --------- Turn | Location | Event 18 | -11/Scrapyard | Discovered new exit (range 15) 123 | -11/Scrapyard | Entered Materials 201 | -10/Materials | Discovered new exit (range 6) 314 | -10/Materials | Build established: Mutant 783 | -10/Materials | Discovered new exit (range 14) 967 | -10/Materials | Discovered new exit (range 12) 1397 | -10/Materials | Entered Mines 1606 | -10/Mines | Received a Rocket Launcher from a helpful Derelict 1674 | -10/Mines | Learned location of Storage (-8) 1776 | -10/Mines | Discovered new exit (range 6) 1849 | -10/Mines | Learned location of 1 exit from Materials 2184 | -10/Mines | Core integrity fell below 50% 2208 | -10/Mines | Core integrity fell below 20% 2226 | -10/Mines | Lost 3 parts (1p1n1w) 2529 | -10/Mines | Entered Materials 2529 | -9/Materials | Evolved 2 slots: Propulsion x2 2530 | -9/Materials | Identified exit to Materials 2822 | -9/Materials | Build established: Scavenger-Mutant 3148 | -9/Materials | Identified exit to Mines 3323 | -9/Materials | Central database locked down 3819 | -9/Materials | Discovered exit to Materials (range 19) 4120 | -9/Materials | Entered Mines 4205 | -9/Mines | Build established: Mutant 4478 | -9/Mines | Found DCF Scrap (15 items) 4500 | -9/Mines | Learned location of Zion (-7) 4520 | -9/Mines | Assembled infested the area 4525 | -9/Mines | Assisted by a Guerilla fighting off Assembled 4555 | -9/Mines | Core integrity fell below 50% 4614 | -9/Mines | Core integrity fell below 20% 4624 | -9/Mines | Lost 11 parts (1p6n1u3w) 4637 | -9/Mines | Destroyed 11 combat bots 4650 | -9/Mines | Destroyed by D-53 Grenadier with Mini Grenade Launcher Last Messages --------------- 04552_ Shotgun destroyed. 04554_ Lgt. Treads+ destroyed. 04565_ as-14310 destroyed. 04565_ as-65644 destroyed. 04568_ as-00420 destroyed. 04571_ Shotgun destroyed. 04585_ Destroyed Asb. Hover Unit. 04585_ Lgt. Treads+ destroyed. 04587_ as-51720 destroyed. 04587_ Switching to secondary target: as-58745. 04591_ Imp. Treads destroyed. 04593_ as-58745 destroyed. 04593_ Hrd. Light Armor Plating destroyed. 04595_ as-98735 destroyed. 04595_ Switching to secondary target: as-67095. 04598_ as-84897 destroyed. 04603_ as-67095 destroyed. 04616_ as-12893 destroyed. 04619_ Acquired 15 matter. 04643_ Acquired Carbon-fiber Leg. Map ----- +----------------------------------------------------+ | ?????????????????????????????????????????????????? | | ?????????????????????????????????????????????????? | | ?????????????????????????????????????????????????? | | ?????????????????????????????????????????????????? | | ?????????????????????????????????????????????????? | | ?????????????????????????????????????????????????? | | ?????????????????????????????????????????????????? | | ?????????????????????????? ????????????????????? | | ?????????????????????????? ???????????????????? | | ?????????????????????????# ??????????????????? | | ?????????????????????????# ??????????????????? | | ?????????????????????????# < ???????????????????? | | ????????????????????????? ???????????????????? | | ????????????????????????? k ???????????????????? | | ????????????????????????? ????????????????????? | | ?????????????????????????# d ????????????????????? | | ?????????????????????????# d#????????????????????? | | ????????????????????????? !%#????????????????????? | | ?????????????????????????#%*#????????????????????? | | ???????????????????????###=%#????????????????????? | | ???????????????????????#;#%*#????????????????????? | | ??????????????????????###*!%#????????????????????? | | ?????????????????????## % %%##???????????????????? | | ??????????????????#### *!% ##??????????????????? | | ?????????????????## # ]%% ##?????????????????? | | ?????????????????# !@ ##????????????????? | | ?????????????????# #????????????????? | | ?????????????????# # #???????????????? | | ?????????????????## #### #??????????????? | | ??????????????????###### #???# #?????????????? | | ???????????????????????# #????# #?????????????? | | ???????????????????????# #?????####?????????????? | | ???????????????????????# #??????????????????????? | | ???????????????????????# #??????????????????????? | | ???????????????????????# #??????????????????????? | | ???????????????????????# #??????????#####???????? | | ???????????????????????# #?????????## ##??????? | | ???????????????????????# #?????????# ###????? | | ???????????????????????# #????###### ##???? | | ???????????????????????# #????# =[= ##??? | | ???????????????????????# #????# %### #??? | | ???????????????????????#*=#????# #?# #??? | | ???????????????????????#!*#????#=!#?# ##?# | | ???????????????????????#!]#?#### =####### ### | | ???????????????????????#[[#?# [* #???## | | ???????????????????????#%=#?# """#????### | | ???????????????????????#=!### """#??????###### | | ???????????????????????#=** """#???????????## | | ???????????????????????###### #????????????? | | ????????????????????????????# #????????????? | +----------------------------------------------------+ Best States ------------- Heat Dissipation 28 Energy Generation 14 Energy Capacity 250 Matter Stores 300 Matter Capacity 300 Sight Range 20 Terrain Scan Density 10 Armor Coverage 150 Evasion (%) 50 Recoil Reduction 4 Item Schematics ----------------- None Robot Schematics ------------------ None Fabricated ------------ Nothing Repaired ---------- Nothing Studied --------- Lgt. Treads | -9/Materials | Hacked Alien Tech Used ----------------- None Achievements -------------- None Challenges ------------ None Game ------ Seed ChromaticAlloyDrivehammer Manual? 0 Play Time 00:28:29 Cumulative 49.4 hours Start 2026.02.05 @ 00:23:53 End 2026.02.05 @ 00:51:43 Sessions 1 Manual Loads 0 Difficulty Rogue Special Mode None Game No. 94 Rogue 94 Adventurer 0 Explorer 0 Win Type - Total 0 Types 0/0/0/0/0/0/0/0/0/0 Lore% 28 Gallery% 28 Achievement% 24 Wizard Run 0 Options --------- Layout 0 ASCII 0 Keyboard 1 Movement Arrows Keybinds 0 Fullscreen 1 Font 18/Smallcaps Map View 38x25 Zoom Use 94% Tactical HUD 1 Map Filters NONE Filters NONE Steam 1 RUN: f0b342ae-3f54-4382-a62e-e6b32c441d6a